[Event "Masters Tournament (MTO)"]
[Site "Biel, Switzerland"]
[Date "2026.07.18"]
[Round "6.30"]
[White "Corbat, Philippe"]
[Black "Matsumura, Cocoro"]
[Result "*"]
[TimeControl "100+30+30sec/move"]
[WhiteClock "00:04:33"]
[BlackClock "00:06:33"]
[ReferenceTime "W/2026-07-18T19:38:40.412+02:00"]
[WhiteTitle "-"]
[BlackTitle "-"]
[WhiteFideId "1304496"]
[BlackFideId "36087114"]
[WhiteElo "1893"]
[BlackElo "2225"]

1. e4 {[%clk 01:40:47]} {[%emt 00:00:10]} c5 {[%clk 01:40:40]} {[%emt
00:00:21]} 2. d4 {[%clk 01:40:51]} {[%emt 00:00:25]} cxd4 {[%clk 01:41:06]}
{[%emt 00:00:05]} 3. c3 {[%clk 01:41:15]} {[%emt 00:00:06]} dxc3 {[%clk
01:41:32]} {[%emt 00:00:05]} 4. Nxc3 {[%clk 01:41:34]} {[%emt 00:00:11]} Nc6
{[%clk 01:41:52]} {[%emt 00:00:10]} 5. Nf3 {[%clk 01:41:40]} {[%emt 00:00:23]}
e6 {[%clk 01:42:09]} {[%emt 00:00:14]} 6. Bc4 {[%clk 01:41:24]} {[%emt
00:00:46]} Bb4 {[%clk 01:42:17]} {[%emt 00:00:21]} 7. O-O {[%clk 01:40:23]}
{[%emt 00:01:31]} Nge7 {[%clk 01:42:33]} {[%emt 00:00:15]} 8. a3 {[%clk
01:39:41]} {[%emt 00:01:11]} Bxc3 {[%clk 01:40:22]} {[%emt 00:02:42]} 9. bxc3
{[%clk 01:40:03]} {[%emt 00:00:08]} d5 {[%clk 01:38:18]} {[%emt 00:02:34]} 10.
Bd3 {[%clk 01:38:43]} {[%emt 00:01:50]} dxe4 {[%clk 01:30:29]} {[%emt
00:08:19]} 11. Bxe4 {[%clk 01:39:04]} {[%emt 00:00:09]} Qxd1 {[%clk 01:30:56]}
{[%emt 00:00:03]} 12. Rxd1 {[%clk 01:39:25]} {[%emt 00:00:09]} f6 {[%clk
01:25:53]} {[%emt 00:05:33]} 13. a4 {[%clk 01:35:31]} {[%emt 00:04:24]} g5
{[%clk 01:18:14]} {[%emt 00:08:09]} 14. Ba3 {[%clk 01:29:10]} {[%emt 00:06:50]}
e5 {[%clk 01:11:32]} {[%emt 00:07:13]} 15. Rd6 {[%clk 01:22:40]} {[%emt
00:06:59]} Kf7 {[%clk 01:08:14]} {[%emt 00:03:48]} 16. Nd2 {[%clk 01:14:50]}
{[%emt 00:08:20]} f5 {[%clk 00:46:17]} {[%emt 00:22:28]} 17. Bd3 {[%clk
01:05:04]} {[%emt 00:10:15]} Rd8 {[%clk 00:46:09]} {[%emt 00:00:39]} 18. Bc4+
{[%clk 01:02:45]} {[%emt 00:02:49]} Ke8 {[%clk 00:42:53]} {[%emt 00:03:46]} 19.
Nf3 {[%clk 01:00:49]} {[%emt 00:02:25]} g4 {[%clk 00:32:27]} {[%emt 00:10:57]}
20. Ng5 {[%clk 00:51:18]} {[%emt 00:10:00]} Rxd6 {[%clk 00:30:27]} {[%emt
00:02:30]} 21. Bxd6 {[%clk 00:51:39]} {[%emt 00:00:09]} h5 {[%clk 00:24:03]}
{[%emt 00:06:54]} 22. Nh7 {[%clk 00:41:28]} {[%emt 00:10:40]} f4 {[%clk
00:19:54]} {[%emt 00:04:40]} 23. Nf6+ {[%clk 00:41:18]} {[%emt 00:00:41]} Kf8
{[%clk 00:20:13]} {[%emt 00:00:11]} 24. Nd5 {[%clk 00:38:27]} {[%emt 00:03:20]}
Bf5 {[%clk 00:19:42]} {[%emt 00:01:01]} 25. Bb5 {[%clk 00:30:23]} {[%emt
00:08:34]} Rd8 {[%clk 00:19:28]} {[%emt 00:00:45]} 26. Nxe7 {[%clk 00:30:32]}
{[%emt 00:00:21]} Nxe7 {[%clk 00:19:43]} {[%emt 00:00:15]} 27. Bxe5 {[%clk
00:30:38]} {[%emt 00:00:24]} Ng6 {[%clk 00:18:31]} {[%emt 00:01:42]} 28. Bd4
{[%clk 00:29:03]} {[%emt 00:02:04]} a6 {[%clk 00:16:18]} {[%emt 00:02:43]} 29.
Bc4 {[%clk 00:26:51]} {[%emt 00:02:42]} Ne7 {[%clk 00:11:48]} {[%emt 00:05:01]}
30. Rd1 {[%clk 00:22:03]} {[%emt 00:05:17]} Rc8 {[%clk 00:09:39]} {[%emt
00:02:40]} 31. Bd3 {[%clk 00:20:57]} {[%emt 00:01:35]} Kf7 {[%clk 00:07:08]}
{[%emt 00:03:02]} 32. Kf1 {[%clk 00:20:18]} {[%emt 00:01:08]} Bxd3+ {[%clk
00:06:48]} {[%emt 00:00:51]} 33. Rxd3 {[%clk 00:20:41]} {[%emt 00:00:06]} Nf5
{[%clk 00:07:14]} {[%emt 00:00:05]} 34. Ke2 {[%clk 00:14:47]} {[%emt 00:06:23]}
Ke6 {[%clk 00:06:08]} {[%emt 00:01:36]} 35. Kd2 {[%clk 00:13:17]} {[%emt
00:02:00]} Rc4 {[%clk 00:06:26]} {[%emt 00:00:13]} 36. a5 {[%clk 00:13:14]}
{[%emt 00:00:33]} Nxd4 {[%clk 00:05:02]} {[%emt 00:01:53]} 37. cxd4 {[%clk
00:09:46]} {[%emt 00:03:59]} Kd5 {[%clk 00:05:15]} {[%emt 00:00:17]} 38. Rb3
{[%clk 00:09:22]} {[%emt 00:00:53]} Rxd4+ {[%clk 00:05:37]} {[%emt 00:00:08]}
39. Kc3 {[%clk 00:09:16]} {[%emt 00:00:36]} Rc4+ {[%clk 00:05:34]} {[%emt
00:00:34]} 40. Kd3 {[%clk 00:09:13]} {[%emt 00:00:33]} Rd4+ {[%clk 00:04:54]}
{[%emt 00:01:10]} 41. Kc3 {[%clk 00:07:03]} {[%emt 00:02:40]} Ra4 {[%clk
00:28:24]} {[%emt 00:06:59]} 42. Rb4 {[%emt 00:04:16]} b6 43. Rxb6 {[%clk
00:33:17]} Ra2 {[%clk 00:28:51]} {[%emt 00:00:04]} 44. Rb7 {[%clk 00:28:44]}
Rxf2 {[%clk 00:28:09]} {[%emt 00:06:14]} 45. Rh7 {[%clk 00:29:06]} Ke4 {[%clk
00:28:15]} 46. Rxh5 {[%clk 00:26:33]} f3 {[%clk 00:24:56]} {[%emt 00:06:52]} 47.
g3 {[%clk 00:20:29]} Rxh2 {[%clk 00:24:25]} {[%emt 00:07:35]} 48. Rg5 {[%clk
00:20:51]} Ke3 {[%clk 00:24:48]} 49. Rxg4 {[%clk 00:18:40]} f2 {[%clk
00:24:39]} {[%emt 00:03:20]} 50. Rg6 {[%clk 00:19:01]} Rh5 {[%clk 00:15:40]} 51.
Rxa6 {[%clk 00:16:44]} Kf3 {[%clk 00:15:58]} {[%emt 00:02:59]} 52. Rf6 {[%clk
00:16:09]} {[%emt 00:01:06]} Kxg3 {[%clk 00:16:20]} {[%emt 00:00:07]} 53. Rxf2
{[%clk 00:16:00]} {[%emt 00:00:40]} Kxf2 {[%clk 00:15:59]} {[%emt 00:00:51]} 54.
Kb4 {[%clk 00:16:19]} {[%emt 00:00:11]} Ke3 {[%clk 00:12:44]} {[%emt 00:03:44]}
55. a6 {[%clk 00:16:24]} {[%emt 00:00:25]} Kd4 {[%clk 00:12:57]} {[%emt
00:00:17]} 56. a7 {[%clk 00:15:30]} {[%emt 00:01:24]} Rh8 {[%clk 00:12:06]}
{[%emt 00:01:21]} 57. Kb5 {[%clk 00:15:48]} {[%emt 00:00:12]} Kd5 {[%clk
00:12:29]} {[%emt 00:00:07]} 58. Kb6 {[%clk 00:16:05]} {[%emt 00:00:13]} Kd6
{[%clk 00:12:55]} {[%emt 00:00:05]} 59. Kb7 {[%clk 00:16:17]} {[%emt 00:00:17]}
Rh7+ {[%clk 00:13:19]} {[%emt 00:00:06]} 60. Kb6 {[%clk 00:16:13]} {[%emt
00:00:34]} Rh1 {[%clk 00:13:10]} {[%emt 00:00:39]} 61. a8=Q {[%clk 00:15:53]}
{[%emt 00:00:50]} Rb1+ {[%clk 00:13:33]} {[%emt 00:00:07]} 62. Ka7 {[%clk
00:16:18]} {[%emt 00:00:06]} Kc7 {[%clk 00:13:48]} {[%emt 00:00:15]} 63. Qh8
{[%clk 00:15:56]} {[%emt 00:00:51]} Rb7+ {[%clk 00:12:03]} {[%emt 00:02:16]} 64.
Ka6 {[%clk 00:15:53]} {[%emt 00:00:32]} Rb6+ {[%clk 00:12:00]} {[%emt
00:00:33]} 65. Ka5 {[%clk 00:16:13]} {[%emt 00:00:10]} Re6 {[%clk 00:09:53]}
{[%emt 00:02:36]} 66. Qg7+ {[%clk 00:14:54]} {[%emt 00:01:50]} Kc6 {[%clk
00:09:34]} {[%emt 00:00:50]} 67. Qd4 {[%clk 00:14:38]} {[%emt 00:00:45]} Re7
{[%clk 00:09:05]} {[%emt 00:01:00]} 68. Qf6+ {[%clk 00:14:28]} {[%emt
00:00:39]} Kd7 {[%clk 00:09:29]} {[%emt 00:00:07]} 69. Kb5 {[%clk 00:14:41]}
{[%emt 00:00:16]} Re6 {[%clk 00:09:03]} {[%emt 00:00:56]} 70. Qf7+ {[%clk
00:12:12]} {[%emt 00:02:59]} Kd6 {[%clk 00:09:02]} {[%emt 00:00:32]} 71. Kc4
{[%clk 00:11:54]} {[%emt 00:00:48]} Ke5 {[%clk 00:08:12]} {[%emt 00:01:19]} 72.
Qf3 {[%clk 00:11:25]} {[%emt 00:00:58]} Rd6 {[%clk 00:07:02]} {[%emt 00:01:41]}
73. Kc5 {[%clk 00:11:28]} {[%emt 00:00:27]} Rd7 {[%clk 00:07:03]} {[%emt
00:00:29]} 74. Qe3 {[%clk 00:11:16]} {[%emt 00:00:42]} Kf6 {[%clk 00:07:26]}
{[%emt 00:00:07]} 75. Qf4+ {[%clk 00:10:50]} {[%emt 00:00:56]} Ke6 {[%clk
00:07:41]} {[%emt 00:00:14]} 76. Kc6 {[%clk 00:10:54]} {[%emt 00:00:26]} Rf7
{[%clk 00:07:46]} {[%emt 00:00:24]} 77. Qe4 {[%clk 00:09:48]} {[%emt 00:01:37]}
Kf6 {[%clk 00:08:12]} {[%emt 00:00:05]} 78. Kd6 {[%clk 00:10:03]} {[%emt
00:00:14]} Kg5 {[%clk 00:08:18]} {[%emt 00:00:23]} 79. Ke6 {[%clk 00:09:21]}
{[%emt 00:01:13]} Rf4 {[%clk 00:07:56]} {[%emt 00:00:52]} 80. Qh7 {[%clk
00:07:03]} {[%emt 00:02:48]} Kg4 {[%clk 00:07:19]} {[%emt 00:01:06]} 81. Ke5
{[%clk 00:06:43]} {[%emt 00:00:51]} Kg3 {[%clk 00:06:53]} {[%emt 00:00:56]} 82.
Qh1 {[%clk 00:06:25]} {[%emt 00:00:48]} Rg4 {[%clk 00:06:28]} {[%emt 00:00:55]}
83. Qg1+ {[%clk 00:04:48]} {[%emt 00:02:07]} Kf3 {[%clk 00:05:55]} {[%emt
00:01:03]} 84. Qd1+ {[%clk 00:04:51]} {[%emt 00:00:27]} Kg3 {[%clk 00:06:17]}
{[%emt 00:00:08]} 85. Qd3+ {[%clk 00:04:17]} {[%emt 00:01:04]} Kf2 {[%clk
00:06:19]} {[%emt 00:00:29]} 86. Qh3 {[%clk 00:04:07]} {[%emt 00:00:39]} Rg3
{[%clk 00:06:19]} {[%emt 00:00:30]} 87. Qh4 {[%clk 00:04:16]} {[%emt 00:00:21]}
Kf3 {[%clk 00:06:08]} {[%emt 00:00:41]} 88. Qxg3+ {[%clk 00:04:33]} {[%emt
00:00:13]} Kxg3 {[%clk 00:06:33]} {[%emt 00:00:05]} *

[Event "Masters Tournament (MTO)"]
[Site "Biel, Switzerland"]
[Date "2026.07.18"]
[Round "6.31"]
[White "Tan, Jimmy"]
[Black "Angst, Oliver"]
[Result "0-1"]
[TimeControl "100+30+30sec/move"]
[WhiteTitle "-"]
[BlackTitle "-"]
[WhiteFideId "129057499"]
[BlackFideId "1334069"]
[WhiteElo "1953"]
[BlackElo "2121"]

1. d4 {[%clk 01:40:58]} {[%emt 00:00:04]} d5 {[%clk 01:40:42]} {[%emt
00:00:17]} 2. Nc3 {[%clk 01:41:23]} {[%emt 00:00:05]} c5 {[%clk 01:40:51]}
{[%emt 00:00:21]} 3. e4 {[%clk 01:40:41]} {[%emt 00:01:12]} dxe4 {[%clk
01:37:56]} {[%emt 00:03:24]} 4. d5 {[%clk 01:41:05]} {[%emt 00:00:06]} Nf6
{[%clk 01:37:42]} {[%emt 00:00:44]} 5. Bf4 {[%clk 01:38:57]} {[%emt 00:02:39]}
a6 {[%clk 01:24:40]} {[%emt 00:13:32]} 6. Qd2 {[%clk 01:33:44]} {[%emt
00:05:43]} g6 {[%clk 01:23:14]} {[%emt 00:01:55]} 7. Nge2 {[%clk 01:33:00]}
{[%emt 00:01:15]} Bg7 {[%clk 01:22:15]} {[%emt 00:01:29]} 8. Ng3 {[%clk
01:32:33]} {[%emt 00:00:56]} O-O {[%clk 01:20:30]} {[%emt 00:02:15]} 9. O-O-O
{[%clk 01:31:34]} {[%emt 00:01:30]} Qa5 {[%clk 01:01:00]} {[%emt 00:20:00]} 10.
Kb1 {[%clk 01:30:56]} {[%emt 00:01:07]} Qb4 {[%clk 00:57:46]} {[%emt 00:03:44]}
11. a3 {[%clk 01:15:59]} {[%emt 00:15:29]} Qb6 {[%clk 00:55:41]} {[%emt
00:02:34]} 12. Na4 {[%clk 00:46:19]} {[%emt 00:30:10]} Qa7 {[%clk 00:48:41]}
{[%emt 00:07:29]} 13. d6 {[%clk 00:45:18]} {[%emt 00:01:31]} e6 {[%clk
00:30:32]} {[%emt 00:18:40]} 14. Nc3 {[%clk 00:25:06]} {[%emt 00:20:42]} b5
{[%clk 00:29:10]} {[%emt 00:01:52]} 15. Ngxe4 {[%clk 00:23:43]} {[%emt
00:01:52]} Nbd7 {[%clk 00:29:28]} {[%emt 00:00:12]} 16. Nxf6+ {[%clk 00:13:45]}
{[%emt 00:10:29]} Nxf6 {[%clk 00:27:11]} {[%emt 00:02:46]} 17. Be5 {[%clk
00:08:40]} {[%emt 00:05:36]} Bb7 {[%clk 00:24:24]} {[%emt 00:03:16]} 18. Qg5
{[%clk 00:06:20]} {[%emt 00:02:50]} h6 {[%clk 00:21:13]} {[%emt 00:03:40]} 19.
Qg3 {[%clk 00:03:49]} {[%emt 00:03:01]} b4 {[%clk 00:20:04]} {[%emt 00:01:40]}
20. Bxf6 {[%clk 00:04:13]} {[%emt 00:00:06]} Bxf6 {[%clk 00:20:22]} {[%emt
00:00:12]} 21. axb4 {[%clk 00:04:33]} {[%emt 00:00:10]} cxb4 {[%clk 00:20:31]}
{[%emt 00:00:21]} 22. Na2 {[%clk 00:03:54]} {[%emt 00:01:10]} b3 {[%clk
00:08:47]} {[%emt 00:12:14]} 23. cxb3 {[%clk 00:03:55]} {[%emt 00:00:27]} a5
{[%clk 00:06:32]} {[%emt 00:02:46]} 24. Bc4 {[%clk 00:03:39]} {[%emt 00:00:46]}
a4 {[%clk 00:05:50]} {[%emt 00:01:13]} 25. b4 {[%clk 00:03:42]} {[%emt
00:00:27]} a3 {[%clk 00:06:05]} {[%emt 00:00:15]} 26. Qe3 {[%clk 00:01:27]}
{[%emt 00:02:45]} Qa4 {[%clk 00:00:55]} {[%emt 00:05:28]} 27. b3 {[%clk
00:01:24]} {[%emt 00:00:44]} Qc6 {[%emt 00:01:33]} 28. Rhe1 {[%clk 00:01:11]}
Qxg2 {[%clk 00:00:40]} {[%emt 00:00:25]} 29. Bd3 {[%clk 00:00:35]} {[%emt
00:01:07]} Bg5 {[%clk 00:00:36]} {[%emt 00:00:34]} 30. Qd4 {[%clk 00:00:41]}
{[%emt 00:00:24]} Qxh2 {[%clk 00:00:40]} {[%emt 00:00:26]} 31. Be4 {[%clk
00:00:36]} {[%emt 00:00:35]} e5 {[%clk 00:00:41]} {[%emt 00:00:29]} 32. Qb6
{[%clk 00:00:43]} {[%emt 00:00:22]} Bxe4+ {[%clk 00:00:42]} {[%emt 00:00:29]}
33. Rxe4 {[%clk 00:01:12]} {[%emt 00:00:01]} Rfb8 {[%clk 00:00:38]} {[%emt
00:00:34]} 34. Qc5 {[%clk 00:01:36]} {[%emt 00:00:07]} Rc8 {[%clk 00:00:48]}
{[%emt 00:00:19]} 35. Qb6 {[%clk 00:01:48]} {[%emt 00:00:18]} Qg2 {[%clk
00:00:40]} {[%emt 00:00:38]} 36. Rc4 {[%clk 00:01:59]} {[%emt 00:00:19]} Rxc4
{[%clk 00:00:43]} {[%emt 00:00:27]} 37. bxc4 {[%clk 00:01:58]} {[%emt
00:00:31]} Qf3 {[%clk 00:00:45]} {[%emt 00:00:28]} 38. Kc2 {[%clk 00:01:09]}
{[%emt 00:01:19]} Qe2+ {[%clk 00:00:56]} {[%emt 00:00:20]} 39. Kc3 {[%clk
00:01:00]} {[%emt 00:00:39]} Qxd1 {[%clk 00:01:10]} {[%emt 00:00:16]} 40. Qc6
{[%clk 00:00:53]} {[%emt 00:00:37]} Qd2+ {[%clk 00:01:15]} {[%emt 00:00:24]} 41.
Kb3 {[%clk 00:01:17]} {[%emt 00:00:07]} Qb2# {[%clk 00:01:28]} {[%emt
00:00:16]} 0-1

[Event "Masters Tournament (MTO)"]
[Site "Biel, Switzerland"]
[Date "2026.07.18"]
[Round "6.32"]
[White "Schmidt, Florian Pascal"]
[Black "Stevens, Christian"]
[Result "1-0"]
[TimeControl "100+30+30sec/move"]
[WhiteTitle "-"]
[BlackTitle "-"]
[WhiteFideId "16256840"]
[BlackFideId "649090"]
[WhiteElo "2095"]
[BlackElo "2014"]

1. e4 {[%clk 01:40:57]} {[%emt 00:00:01]} c5 {[%clk 01:40:52]} {[%emt
00:00:08]} 2. Nf3 {[%clk 01:41:21]} {[%emt 00:00:06]} d6 {[%clk 01:41:17]}
{[%emt 00:00:07]} 3. d4 {[%clk 01:41:37]} {[%emt 00:00:12]} cxd4 {[%clk
01:41:41]} {[%emt 00:00:06]} 4. Nxd4 {[%clk 01:42:03]} {[%emt 00:00:05]} Nf6
{[%clk 01:41:57]} {[%emt 00:00:13]} 5. Nc3 {[%clk 01:42:28]} {[%emt 00:00:05]}
a6 {[%clk 01:42:20]} {[%emt 00:00:08]} 6. Bc4 {[%clk 01:42:23]} {[%emt
00:00:34]} e6 {[%clk 01:42:42]} {[%emt 00:00:08]} 7. Bb3 {[%clk 01:42:38]}
{[%emt 00:00:15]} b5 {[%clk 01:43:03]} {[%emt 00:00:09]} 8. Bg5 {[%clk
01:42:35]} {[%emt 00:00:33]} h6 {[%clk 01:41:35]} {[%emt 00:01:58]} 9. Bxf6
{[%clk 01:38:20]} {[%emt 00:04:46]} Qxf6 {[%clk 01:41:45]} {[%emt 00:00:19]} 10.
Qd2 {[%clk 01:36:07]} {[%emt 00:02:43]} Nd7 {[%clk 01:36:52]} {[%emt 00:05:23]}
11. O-O-O {[%emt 00:07:13]} Nc5 {[%clk 01:35:17]} 12. f3 {[%clk 01:11:52]}
{[%emt 00:20:08]} Bd7 {[%clk 01:28:50]} {[%emt 00:06:57]} 13. g4 {[%clk
00:58:13]} {[%emt 00:14:09]} Rc8 {[%clk 01:24:08]} {[%emt 00:05:11]} 14. h4
{[%clk 00:52:18]} {[%emt 00:06:26]} b4 {[%clk 01:17:25]} {[%emt 00:07:13]} 15.
Nce2 {[%clk 00:48:29]} {[%emt 00:04:18]} a5 {[%clk 01:14:31]} {[%emt 00:03:25]}
16. Ng3 {[%clk 00:36:39]} {[%emt 00:12:20]} Qd8 {[%clk 01:06:35]} {[%emt
00:08:25]} 17. Qe2 {[%clk 00:28:23]} {[%emt 00:08:46]} Qb6 {[%clk 00:58:40]}
{[%emt 00:08:25]} 18. Bc4 {[%clk 00:27:30]} {[%emt 00:01:24]} Be7 {[%clk
00:57:36]} {[%emt 00:01:33]} 19. Kb1 {[%clk 00:24:41]} {[%emt 00:03:20]} Rb8
{[%clk 00:52:35]} {[%emt 00:05:30]} 20. Nh5 {[%clk 00:23:44]} {[%emt 00:01:27]}
Kf8 {[%clk 00:47:55]} {[%emt 00:05:11]} 21. Qe3 {[%clk 00:20:53]} {[%emt
00:03:20]} Na4 {[%clk 00:39:01]} {[%emt 00:09:24]} 22. Bb3 {[%clk 00:18:35]}
{[%emt 00:02:49]} Nc5 {[%clk 00:33:53]} {[%emt 00:05:37]} 23. g5 {[%clk
00:17:46]} {[%emt 00:01:19]} Nxb3 {[%clk 00:31:33]} {[%emt 00:02:50]} 24. Qxb3
{[%clk 00:16:21]} {[%emt 00:01:56]} Qc5 {[%clk 00:30:47]} {[%emt 00:01:16]} 25.
f4 {[%clk 00:14:35]} {[%emt 00:02:15]} a4 {[%clk 00:29:02]} {[%emt 00:02:15]}
26. Qd3 {[%clk 00:13:42]} {[%emt 00:01:23]} a3 {[%clk 00:28:24]} {[%emt
00:01:08]} 27. e5 {[%clk 00:10:17]} {[%emt 00:03:56]} d5 {[%clk 00:19:56]}
{[%emt 00:08:58]} 28. g6 {[%clk 00:09:15]} {[%emt 00:01:31]} f5 {[%clk
00:11:17]} {[%emt 00:09:08]} 29. exf6 {[%clk 00:09:17]} {[%emt 00:00:29]} Bxf6
{[%clk 00:11:38]} {[%emt 00:00:09]} 30. Qe3 {[%clk 00:07:30]} {[%emt 00:02:18]}
Rc8 {[%clk 00:10:21]} {[%emt 00:01:47]} 31. Nxf6 {[%clk 00:06:35]} {[%emt
00:01:25]} gxf6 {[%clk 00:10:50]} {[%emt 00:00:01]} 32. Qxe6 {[%clk 00:05:21]}
{[%emt 00:01:44]} Qxc2+ {[%clk 00:10:43]} {[%emt 00:00:36]} 33. Nxc2 {[%clk
00:05:47]} {[%emt 00:00:05]} Bxe6 {[%clk 00:11:08]} {[%emt 00:00:04]} 34. Nd4
{[%clk 00:03:49]} {[%emt 00:02:29]} Bg4 {[%clk 00:11:10]} {[%emt 00:00:28]} 35.
Rd3 {[%clk 00:02:50]} {[%emt 00:01:29]} Rc4 {[%clk 00:09:34]} {[%emt 00:02:06]}
36. bxa3 {[%clk 00:01:45]} {[%emt 00:01:35]} bxa3 {[%clk 00:09:45]} {[%emt
00:00:19]} 37. f5 {[%clk 00:01:31]} {[%emt 00:00:44]} Ke7 {[%clk 00:09:05]}
{[%emt 00:01:09]} 38. Ka1 {[%clk 00:01:12]} {[%emt 00:00:50]} Rhc8 {[%clk
00:09:14]} {[%emt 00:00:20]} 39. Re1+ {[%clk 00:01:22]} {[%emt 00:00:20]} Kd7
{[%clk 00:09:36]} {[%emt 00:00:07]} 40. Nb3 {[%clk 00:01:26]} {[%emt 00:00:27]}
d4 {[%clk 00:08:15]} {[%emt 00:01:51]} 41. Rxd4+ {[%clk 00:25:51]} {[%emt
00:06:06]} Rxd4 {[%clk 00:37:35]} {[%emt 00:01:10]} 42. Nxd4 {[%clk 00:26:17]}
{[%emt 00:00:03]} Kd6 {[%clk 00:37:06]} {[%emt 00:00:59]} 43. Nb5+ {[%clk
00:15:36]} {[%emt 00:11:12]} Kd5 {[%clk 00:37:05]} {[%emt 00:00:30]} 44. g7
{[%clk 00:15:41]} {[%emt 00:00:26]} Bxf5 {[%clk 00:36:03]} {[%emt 00:01:32]} 45.
Nc7+ {[%clk 00:15:53]} {[%emt 00:00:16]} Kd4 {[%clk 00:35:09]} {[%emt
00:01:24]} 46. Ne8 {[%clk 00:16:02]} {[%emt 00:00:21]} Be6 {[%clk 00:34:24]}
{[%emt 00:01:16]} 47. Nxf6 {[%clk 00:15:19]} {[%emt 00:01:14]} Kd3 {[%clk
00:31:50]} {[%emt 00:03:04]} 48. Rg1 {[%clk 00:11:30]} {[%emt 00:04:19]} Ke2
{[%clk 00:28:53]} {[%emt 00:03:26]} 49. h5 {[%clk 00:04:54]} {[%emt 00:07:07]}
Kf2 {[%clk 00:27:24]} {[%emt 00:01:58]} 50. Rh1 {[%clk 00:05:16]} {[%emt
00:00:09]} Kg2 {[%clk 00:26:47]} {[%emt 00:01:06]} 51. Rd1 {[%clk 00:05:42]}
{[%emt 00:00:05]} Rc2 {[%clk 00:26:31]} {[%emt 00:00:46]} 52. g8=Q+ {[%clk
00:05:02]} {[%emt 00:01:10]} Bxg8 {[%clk 00:26:33]} {[%emt 00:01:29]} 53. Nxg8
{[%clk 00:07:28]} {[%emt 00:00:02]} Rc5 {[%clk 00:26:37]} {[%emt 00:00:26]} 54.
Nxh6 {[%clk 00:07:10]} {[%emt 00:00:49]} 1-0

[Event "Masters Tournament (MTO)"]
[Site "Biel, Switzerland"]
[Date "2026.07.18"]
[Round "6.33"]
[White "Fattori Dittmar, Luca"]
[Black "Iafelice, Vincenzo"]
[Result "1/2-1/2"]
[TimeControl "100+30+30sec/move"]
[WhiteTitle "-"]
[BlackTitle "-"]
[WhiteFideId "34678883"]
[BlackFideId "810541"]
[WhiteElo "1840"]
[BlackElo "2086"]

1. d4 {[%clk 01:40:37]} {[%emt 00:00:22]} Nf6 {[%clk 01:40:50]} {[%emt
00:00:09]} 2. c4 {[%clk 01:41:02]} {[%emt 00:00:05]} e6 {[%clk 01:41:11]}
{[%emt 00:00:09]} 3. Nc3 {[%clk 01:41:04]} {[%emt 00:00:27]} d5 {[%clk
01:41:31]} {[%emt 00:00:10]} 4. cxd5 {[%clk 01:40:54]} {[%emt 00:00:40]} exd5
{[%clk 01:41:59]} {[%emt 00:00:02]} 5. Bg5 {[%clk 01:41:16]} {[%emt 00:00:09]}
Be7 {[%clk 01:42:19]} {[%emt 00:00:09]} 6. e3 {[%clk 01:41:37]} {[%emt
00:00:10]} O-O {[%clk 01:42:13]} {[%emt 00:00:35]} 7. Bd3 {[%clk 01:41:44]}
{[%emt 00:00:24]} h6 {[%clk 01:42:31]} {[%emt 00:00:11]} 8. Bh4 {[%clk
01:40:52]} {[%emt 00:01:20]} c6 {[%clk 01:42:51]} {[%emt 00:00:12]} 9. Qc2
{[%clk 01:41:09]} {[%emt 00:00:14]} Ne8 {[%clk 01:41:19]} {[%emt 00:02:01]} 10.
Bxe7 {[%clk 01:40:42]} {[%emt 00:00:58]} Qxe7 {[%clk 01:41:46]} {[%emt
00:00:02]} 11. Nf3 {[%clk 01:40:23]} {[%emt 00:00:49]} Nd6 {[%clk 01:38:15]}
{[%emt 00:04:02]} 12. O-O {[%clk 01:40:31]} {[%emt 00:00:22]} Nd7 {[%clk
01:37:44]} {[%emt 00:01:01]} 13. Rfe1 {[%clk 01:39:00]} {[%emt 00:02:00]} Nf6
{[%clk 01:33:34]} {[%emt 00:04:40]} 14. Nd2 {[%clk 01:38:49]} {[%emt 00:00:42]}
Be6 {[%clk 01:26:08]} {[%emt 00:07:55]} 15. h3 {[%clk 01:33:26]} {[%emt
00:05:53]} Rfe8 {[%clk 01:14:24]} {[%emt 00:12:14]} 16. Rad1 {[%clk 01:24:16]}
{[%emt 00:09:41]} Qd7 {[%clk 01:07:23]} {[%emt 00:07:30]} 17. Nf3 {[%clk
01:21:01]} {[%emt 00:03:45]} Bf5 {[%clk 01:00:42]} {[%emt 00:07:12]} 18. Bxf5
{[%clk 01:21:20]} {[%emt 00:00:10]} Nxf5 {[%clk 00:59:17]} {[%emt 00:01:55]} 19.
Ne5 {[%clk 01:21:01]} {[%emt 00:00:50]} Qe6 {[%clk 00:55:11]} {[%emt 00:04:36]}
20. b4 {[%clk 01:20:06]} {[%emt 00:01:25]} Nd6 {[%clk 00:53:33]} {[%emt
00:02:07]} 21. Qd3 {[%clk 01:18:47]} {[%emt 00:01:49]} Nfe4 {[%clk 00:43:55]}
{[%emt 00:10:08]} 22. Nxe4 {[%clk 01:18:58]} {[%emt 00:00:19]} Nxe4 {[%clk
00:42:04]} {[%emt 00:02:21]} 23. Re2 {[%clk 01:09:26]} {[%emt 00:10:03]} a5
{[%clk 00:40:05]} {[%emt 00:02:29]} 24. bxa5 {[%clk 01:09:27]} {[%emt
00:00:29]} Rxa5 {[%clk 00:40:23]} {[%emt 00:00:11]} 25. Rb2 {[%clk 01:09:47]}
{[%emt 00:00:10]} Nd6 {[%clk 00:39:51]} {[%emt 00:01:02]} 26. Qd2 {[%clk
01:06:28]} {[%emt 00:03:50]} Rea8 {[%clk 00:40:02]} {[%emt 00:00:18]} 27. Qe2
{[%clk 01:05:06]} {[%emt 00:01:53]} R8a7 {[%clk 00:35:20]} {[%emt 00:05:12]} 28.
Ra1 {[%clk 01:04:47]} {[%emt 00:00:48]} Qc8 {[%clk 00:31:25]} {[%emt 00:04:25]}
29. Qh5 {[%clk 00:57:39]} {[%emt 00:07:34]} Qa8 {[%clk 00:25:50]} {[%emt
00:06:09]} 30. Qg4 {[%clk 00:54:47]} {[%emt 00:03:21]} Nc4 {[%clk 00:21:55]}
{[%emt 00:04:26]} 31. Rc2 {[%clk 00:54:57]} {[%emt 00:00:21]} Nxe5 {[%clk
00:19:01]} {[%emt 00:03:23]} 32. dxe5 {[%clk 00:55:21]} {[%emt 00:00:05]} Rxa2
{[%clk 00:18:36]} {[%emt 00:00:57]} 33. Rcxa2 {[%clk 00:55:28]} {[%emt
00:00:22]} Rxa2 {[%clk 00:19:04]} {[%emt 00:00:02]} 34. Rxa2 {[%clk 00:55:52]}
{[%emt 00:00:07]} Qxa2 {[%clk 00:19:28]} {[%emt 00:00:05]} 35. Qc8+ {[%clk
00:56:19]} {[%emt 00:00:03]} Kh7 {[%clk 00:19:50]} {[%emt 00:00:08]} 36. Qf5+
{[%clk 00:56:40]} {[%emt 00:00:08]} 1/2-1/2